bitfinex-derivatives/quotes_ETHF0:USTF0_20250807
["timestamp","ask_amount","ask_price","bid_price","bid_amount"]
[1754590863612,42.053,3816.9,3816.8,20.9596]
[1754590864012,42.053,3816.9,3816.8,20.514]
[1754590864615,42.053,3816.9,3816.8,19.0147]
[1754590865014,42.053,3816.9,3816.8,0.5239]
[1754590866913,42.053,3816.9,3816.8,1.5477]
[1754590867104,42.053,3816.9,3816.8,1.8413]
[1754590867809,42.053,3816.9,3816.8,2.7626]
[1754590869015,42.053,3816.9,3816.8,20.9576]
[1754590869212,42.053,3816.9,3816.8,20.512]
[1754590871115,42.053,3816.9,3816.8,20.9576]
[1754590872207,42.053,3816.9,3816.8,20.512]
[1754590872406,42.053,3816.9,3816.8,20.0363]
[1754590873112,42.053,3816.9,3816.8,0.5239]
[1754590873319,1.7731,3816.2,3816.1,1.7645]
[1754590873619,1.7731,3816.2,3816.1,19.9575]
[1754590873620,2.2322,3816.2,3816.1,19.9575]
[1754590873818,2.2322,3816.2,3816.1,20.4142]
[1754590874019,2.2322,3816.2,3816.1,20.9382]
[1754590874220,2.2322,3816.2,3816.1,20.4815]
[1754590874421,2.2322,3816.2,3816.1,18.192]
[1754590874422,1.7731,3816.2,3816.1,18.192]
[1754590874620,2.2322,3816.2,3816.1,18.192]
[1754590875025,43.0322,3816.2,3816.1,19.5207]
[1754590875222,43.0322,3816.2,3816.1,19.9565]
[1754590876015,43.0322,3816.2,3816.1,20.4132]
[1754590876321,43.0322,3816.2,3816.1,19.9565]
[1754590877519,41.6885,3816.2,3816.0,0.52401]
[1754590877815,1.86775,3815.8,3815.6,0.52406]
[1754590878019,58.991,3816.2,3815.1,1.76703]
[1754590878020,0.8885,3815.2,3815.1,1.56174]
[1754590878222,2.2322,3815.2,3815.1,18.71514]
[1754590878519,2.2322,3815.2,3815.1,20.03574]
[1754590878821,2.2322,3815.2,3815.1,20.47964]
[1754590879123,43.0322,3815.2,3815.1,20.93634]
[1754590879326,42.5879,3815.2,3815.1,20.93634]
[1754590879526,42.5879,3815.2,3815.1,18.71514]
[1754590879726,43.0322,3815.2,3815.1,20.47964]
[1754590880119,43.0322,3815.2,3815.1,20.48064]
[1754590881222,43.0322,3815.2,3815.1,20.03674]
[1754590881632,43.0322,3815.2,3815.1,1.84474]
[1754590881929,43.0322,3815.2,3815.1,20.03674]
[1754590882224,43.0322,3815.2,3815.1,19.60094]
[1754590882425,43.0322,3815.2,3815.1,1.40894]
[1754590882627,43.0322,3815.2,3815.1,18.71614]
[1754590882929,43.0322,3815.2,3815.1,20.48064]
[1754590883226,43.0322,3815.2,3815.1,20.93734]
[1754590883534,42.5879,3815.2,3815.1,20.93734]
[1754590883919,43.0322,3815.2,3815.1,20.48064]
[1754590884233,43.0322,3815.2,3815.1,2.28864]
[1754590884525,43.0322,3815.2,3815.1,20.47964]
[1754590884721,42.1288,3815.2,3815.1,20.93634]
[1754590886125,42.5879,3815.2,3815.1,20.93634]
[1754590886434,43.0322,3815.2,3815.1,20.93634]
[1754590886727,43.0322,3815.2,3815.1,20.47964]
[1754590888726,43.0322,3815.2,3815.1,20.03574]
[1754590889030,43.0322,3815.2,3815.1,18.71514]
[1754590889222,1.41264,3815.1,3815.0,0.52414]
[1754590889424,0.8885,3814.4,3814.3,1.84485]
[1754590889626,2.2322,3814.4,3814.3,20.47875]
[1754590891231,43.0322,3814.4,3814.3,20.47875]
[1754590891932,41.4137,3814.4,3814.3,20.47875]
[1754590892131,42.7574,3814.4,3814.3,20.47875]
[1754590892931,42.7574,3814.4,3814.3,2.28875]
[1754590893126,42.7574,3814.4,3814.3,20.03485]
[1754590893532,42.7574,3814.4,3814.3,1.84485]
[1754590893734,42.7574,3814.4,3814.3,20.47775]
[1754590893936,42.7574,3814.4,3814.3,20.93445]
[1754590895131,40.8,3814.4,3814.3,20.93445]
[1754590896738,41.6994,3814.4,3814.3,20.93445]
[1754590897534,42.1437,3814.4,3814.3,20.93445]
[1754590897731,42.1437,3814.4,3814.3,1.40905]
[1754590898036,42.1437,3814.4,3814.3,19.59805]
[1754590898229,42.1437,3814.4,3814.3,20.47775]
[1754590898431,42.1437,3814.4,3814.3,20.93445]
[1754590899240,41.6994,3814.4,3814.3,20.93445]
[1754590899543,40.8,3814.4,3814.3,20.93445]
[1754590899740,42.1437,3814.4,3814.3,20.93445]
[1754590900133,42.1437,3814.4,3814.3,20.05475]
[1754590900342,42.1437,3814.4,3814.3,20.03385]
[1754590900542,42.1437,3814.4,3814.3,20.47775]
[1754590900738,42.1437,3814.4,3814.3,19.00335]
[1754590900943,41.2403,3814.4,3814.3,20.03285]
[1754590901144,41.2403,3814.4,3814.3,20.93345]
[1754590901346,40.8,3814.4,3814.3,20.93345]
[1754590903044,41.2403,3814.4,3814.3,20.93345]
[1754590903642,40.8,3814.4,3814.3,20.93345]
[1754590904547,41.2724,3814.4,3814.3,20.93345]
[1754590904846,40.8,3814.4,3814.3,20.93345]
[1754590905240,2.2222,3815.4,3815.3,0.95591]
[1754590905444,2.2222,3815.4,3815.3,1.26011]
[1754590905644,2.98906028,3815.4,3815.3,0.52411]
[1754590905846,2.2222,3815.4,3815.3,0.52411]
[1754590906342,43.0222,3815.4,3815.3,0.52411]
[1754590906543,41.7239,3815.4,3815.3,20.94861]
[1754590906749,42.1552,3815.4,3815.3,20.94861]
[1754590906951,42.1552,3815.4,3815.3,20.48361]
[1754590907352,42.1552,3815.4,3815.3,20.94861]
[1754590907753,40.8,3815.4,3815.3,20.94861]
[1754590908254,42.1552,3815.4,3815.3,20.94861]
[1754590908751,40.8,3815.4,3815.3,20.94861]
[1754590909352,41.2724,3815.4,3815.3,20.94861]
[1754590909950,40.8,3815.4,3815.3,20.94861]
[1754590911051,41.2724,3815.4,3815.3,20.94861]
[1754590911353,41.7037,3815.4,3815.3,20.94861]
[1754590911749,41.2724,3815.4,3815.3,20.94861]
[1754590911948,40.8,3815.4,3815.3,20.94861]
[1754590912549,41.2724,3815.4,3815.3,20.94861]
[1754590912752,42.1552,3815.4,3815.3,20.94861]
[1754590914555,41.2724,3815.4,3815.3,20.94861]
[1754590914751,0.2903,3815.7,3815.6,1.43287]
[1754590914957,0.867,3816.4,3816.3,0.52397]
[1754590915158,19.045,3816.4,3816.3,0.52397]
[1754590915350,1.66085331,3816.4,3816.3,0.52397]
[1754590915549,2.2222,3816.4,3816.3,0.52397]
[1754590915850,43.0222,3816.4,3816.3,0.52397]
[1754590916156,43.81605331,3816.4,3816.3,0.52397]
[1754590919251,0.2903,3815.6,3815.5,0.95698]
[1754590919457,0.2903,3815.6,3815.5,18.69808]
[1754590919458,2.2222,3815.6,3815.5,18.69808]
[1754590919853,2.2222,3815.6,3815.5,20.03868]
[1754590920052,2.2222,3815.6,3815.5,19.30118]
[1754590920258,2.2222,3815.6,3815.5,18.69808]
[1754590920760,2.2222,3815.6,3815.5,19.00228]
[1754590920951,43.0222,3815.6,3815.5,18.69808]
[1754590921551,43.0222,3815.6,3815.5,18.69608]
[1754590922152,43.0222,3815.6,3815.5,0.52408]
[1754590922358,43.0222,3815.6,3815.5,20.46958]
[1754590922658,40.8,3815.6,3815.5,20.93458]
[1754590922853,41.7037,3815.6,3815.5,20.93458]
[1754590923050,42.1552,3815.6,3815.5,0.52408]
[1754590923253,42.1552,3815.6,3815.5,18.69508]
[1754590923446,42.1552,3815.6,3815.5,19.60388]
[1754590923746,40.8,3815.6,3815.5,20.93358]
[1754590924154,40.8,3815.6,3815.5,2.76258]
[1754590924353,41.7037,3815.6,3815.5,20.93358]
[1754590924554,42.1552,3815.6,3815.5,20.93358]
[1754590924759,42.1552,3815.6,3815.5,0.52408]
[1754590924956,42.1552,3815.6,3815.5,18.69408]
[1754590925655,0.5767,3815.0,3814.8,1.31047]
[1754590925854,1.7707,3814.9,3814.8,18.69418]
[1754590926058,1.5125,3814.9,3814.8,18.69418]
[1754590926354,1.5125,3814.9,3814.8,20.46768]
[1754590926754,1.5125,3814.9,3814.8,20.93268]
[1754590926955,1.5125,3814.9,3814.8,19.73168]
[1754590927159,42.3125,3814.9,3814.8,18.69418]
[1754590927655,42.3125,3814.9,3814.8,20.03588]
[1754590927853,41.5707,3814.9,3814.8,20.46768]
[1754590928053,42.0222,3814.9,3814.8,20.93268]
[1754590928261,42.4535,3814.9,3814.8,20.46768]
[1754590930263,42.4535,3814.9,3814.8,2.29768]
[1754590930465,42.4535,3814.9,3814.8,20.46568]
[1754590930666,41.0903,3814.9,3814.8,2.76268]
[1754590930961,41.5627,3814.9,3814.8,20.93068]
[1754590931263,42.0142,3814.9,3814.8,20.93068]
[1754590931762,42.4455,3814.9,3814.8,20.93068]
[1754590932156,42.4455,3814.9,3814.8,20.46568]
[1754590933761,0.4451,3814.8,3813.7,37.736]
[1754590933958,2.1932,3814.7,3814.6,1.126]
[1754590934165,0.7471,3814.7,3814.6,2.3073]
[1754590934361,0.7471,3814.7,3814.6,2.7315]
[1754590935070,40.8,3814.9,3814.8,2.73148]
[1754590935360,40.8,3814.9,3814.8,20.47328]
[1754590935563,41.6745,3814.9,3814.8,20.89748]
[1754590935764,41.2543,3814.9,3814.8,20.89748]
[1754590935968,40.8,3814.9,3814.8,20.89748]
[1754590939568,18.166,3815.8,3814.8,20.89748]
[1754590939569,1.0402,3815.6,3815.5,2.30719]
[1754590939769,1.4604,3815.6,3815.5,20.47219]
[1754590939967,2.1932,3815.6,3815.5,20.02899]
[1754590940168,2.1932,3815.6,3815.5,20.47219]
[1754590940572,42.9932,3815.6,3815.5,20.47219]
[1754590940773,44.02663047,3815.6,3815.5,19.29089]
[1754590941069,44.02663047,3815.6,3815.5,18.98929]
[1754590941677,42.9932,3815.6,3815.5,20.47219]
[1754590942266,43.77570432,3815.6,3815.5,19.72539]
[1754590942870,43.77570432,3815.6,3815.5,19.29089]
[1754590943168,42.9932,3815.6,3815.5,20.47219]
[1754590943369,42.9932,3815.6,3815.5,20.89639]
[1754590943869,42.9932,3815.6,3815.5,20.47219]
[1754590945475,41.8402,3815.6,3815.5,20.47219]
[1754590945671,42.7055,3815.6,3815.5,20.47219]
[1754590945978,42.2604,3815.6,3815.5,20.89639]
[1754590946274,1.4604,3815.6,3815.5,20.89639]
[1754590946472,2.1932,3815.9,3815.8,2.73135]
[1754590946673,2.1932,3815.9,3815.8,20.89135]
[1754590946877,42.5481,3815.9,3815.8,20.89135]
[1754590947080,42.32949895,3815.9,3815.8,20.89135]
[1754590947677,41.5471,3815.9,3815.8,20.89135]
[1754590947875,42.4124,3815.9,3815.8,20.46715]
[1754590948582,42.4124,3815.9,3815.8,20.89135]
[1754590950077,41.9673,3815.9,3815.8,20.89135]
[1754590951282,0.4202,3816.3,3815.8,20.89135]
[1754590951483,1.7481,3816.3,3816.2,2.73129]
[1754590951780,42.9932,3816.3,3816.2,20.01989]
[1754590951982,1.6124,3816.2,3816.1,0.524]
[1754590952191,2.17732527,3816.2,3816.1,18.156]
[1754590952486,2.17732527,3816.2,3816.0,0.52401]
[1754590952886,1.3196,3816.1,3816.0,0.52401]
[1754590953087,0.5808,3815.3,3815.2,0.6018]
[1754590953281,0.5808,3815.3,3815.2,18.156]
[1754590953484,18.67907,3815.7,3815.6,0.52407]
[1754590953686,0.8689,3814.9,3814.8,0.52418]
[1754590953881,1.0514,3814.8,3814.6,0.5242]
[1754590954090,1.3232,3814.2,3814.1,0.94848]
[1754590954387,1.9203,3814.2,3814.1,19.53698]
[1754590954790,42.7203,3814.2,3814.1,20.44238]
[1754590955090,42.7203,3814.2,3814.1,20.88558]
[1754590955291,42.266,3814.2,3814.1,20.88558]
[1754590955986,42.7203,3814.2,3814.1,20.88558]
[1754590956690,42.7203,3814.2,3814.1,20.44238]
[1754590958287,42.7203,3814.2,3814.1,18.67828]
[1754590958992,42.7203,3814.2,3814.1,19.10248]
[1754590959295,42.266,3814.2,3814.1,20.88558]
[1754590959687,42.0891,3814.2,3814.1,20.88558]
[1754590959987,40.8,3814.2,3814.1,20.88558]
[1754590962193,41.8514,3814.2,3814.1,18.67828]
[1754590963297,41.8514,3814.2,3814.1,18.154]
[1754590963991,1.9355,3814.0,3813.9,0.9439033]
[1754590964197,1.9355,3814.0,3813.9,0.4865033]
[1754590964498,0.5818,3813.6,3813.5,19.11156]
[1754590964890,0.5818,3813.6,3813.5,20.17346]
[1754590965091,41.3818,3813.6,3813.5,20.17346]
[1754590965287,41.3818,3813.6,3813.5,2.01946]
[1754590965691,41.3818,3813.6,3813.5,1.57406]
[1754590965993,41.3818,3813.6,3813.5,2.33396]
[1754590966295,40.8,3813.6,3813.5,2.75636]
[1754590968700,40.9859,3813.6,3813.5,2.75636]
[1754590969500,40.9859,3813.6,3813.5,2.33396]
[1754590969902,0.3959,3813.4,3813.3,18.154]
[1754590970096,0.5818,3813.4,3813.3,19.11159]
[1754590970297,0.6456,3813.4,3813.3,19.11159]
[1754590970697,0.5818,3813.4,3813.3,19.11159]
[1754590970901,0.5818,3813.4,3813.3,19.42759]
[1754590971104,0.5818,3813.4,3813.3,20.48799]
[1754590971305,0.5818,3813.4,3813.3,0.52439]
[1754590971505,0.6456,3813.4,3813.3,0.95759]
[1754590971803,0.6456,3813.4,3813.2,18.6784]
[1754590971804,0.5818,3813.3,3813.2,18.6784]
[1754590972396,0.5818,3813.3,3813.2,19.1116]
[1754590972597,0.6456,3813.3,3813.2,0.4332]
[1754590972806,41.4456,3813.3,3813.2,0.4332]
[1754590973005,41.97,3813.3,3813.1,0.52441]
[1754590973206,0.5818,3813.2,3813.1,0.95761]
[1754590973402,0.5818,3813.2,3813.1,1.88861]
[1754590973602,0.5818,3813.2,3813.1,2.75641]
[1754590974602,40.8,3813.3,3813.1,1.45541]
[1754590974802,40.8,3813.3,3813.2,2.232]
[1754590978012,40.8,3813.3,3813.2,20.386]
[1754590978013,40.9859,3813.3,3813.2,20.386]
[1754590979404,40.8,3813.3,3813.2,20.386]
[1754590980812,40.8,3813.3,3813.2,2.232]
[1754590981014,40.8,3813.3,3813.2,20.385]
[1754590981215,40.8,3813.3,3813.2,2.232]
[1754590981414,40.8,3813.3,3813.2,20.385]
[1754590981912,40.8,3813.3,3813.2,2.232]
[1754590982215,40.9859,3813.3,3813.2,20.385]
[1754590982615,40.8,3813.3,3813.2,20.385]
[1754590983013,40.9859,3813.3,3813.2,20.385]
[1754590983209,40.8,3813.3,3813.2,20.385]
[1754590984811,0.8859,3814.0,3813.9,1.45531]
[1754590985012,1.3164,3814.0,3813.9,20.90731]
[1754590985214,0.3041,3814.0,3813.9,20.90731]
[1754590985420,1.2143,3814.5,3814.4,2.33384]
[1754590985617,1.3164,3814.5,3814.4,2.75624]
[1754590985819,42.1164,3814.5,3814.4,2.33384]
[1754590986120,43.14103468,3814.5,3814.4,0.95744]
[1754590986309,42.89041507,3814.5,3814.4,0.95744]
[1754590986513,43.14110655,3814.5,3814.4,0.95744]
[1754590986713,43.14110655,3814.5,3814.4,1.27344]
[1754590986914,43.14110655,3814.5,3814.4,1.71884]
[1754590987514,43.14110655,3814.5,3814.4,0.95744]
[1754590987717,0.7,3813.6,3813.5,1.15486]
[1754590987919,19.2795,3814.2,3814.1,0.52428]
[1754590988218,2.1555333,3814.2,3814.1,2.33388]
[1754590988420,41.9305,3814.2,3814.1,2.75628]
[1754590988618,43.14150202,3814.2,3814.1,2.75628]
[1754590989221,43.14150202,3814.2,3814.1,2.33388]
[1754590990018,42.1812602,3814.2,3814.1,2.75628]
[1754590990321,40.8,3814.2,3814.1,2.75628]
[1754590990722,1.2986,3814.6,3814.5,1.45523]
[1754590991021,1.2986,3814.6,3814.5,20.90423]
[1754590991210,42.0986,3814.6,3814.5,20.90423]
[1754590991410,43.12339353,3814.6,3814.5,20.90423]
[1754590991611,43.18209353,3814.6,3814.5,19.10543]
[1754590992015,43.12339353,3814.6,3814.5,19.10543]
[1754590992215,43.18209353,3814.6,3814.5,19.10543]
[1754590992416,43.18209353,3814.6,3814.5,0.95743]
[1754590992725,43.12339353,3814.6,3814.5,2.33383]
[1754590992915,43.12339353,3814.6,3814.5,2.75623]
[1754590994120,41.82479353,3814.6,3814.5,2.75623]
[1754590994315,40.8,3814.6,3814.5,2.75623]
[1754590994721,40.8,3814.6,3814.5,20.90223]
[1754590994922,41.4099,3814.6,3814.5,20.90223]
[1754590995720,40.8,3814.6,3814.5,20.90223]
[1754590996822,1.3165,3815.4,3815.3,1.42692]
[1754590997118,1.02369507,3815.7,3815.6,0.52407]
[1754590997318,1.768,3815.8,3815.7,1.7733]
[1754590997518,0.8858,3815.6,3815.5,0.52408]
[1754590997722,42.998,3815.6,3815.5,0.52408]
[1754590997922,43.24778089,3815.6,3815.5,0.95818]
[1754590998123,42.998,3815.6,3815.5,0.95818]
[1754590998320,42.998,3815.6,3815.5,1.26008]
[1754590998821,42.998,3815.6,3815.5,1.55608]
[1754590999018,42.998,3815.6,3815.5,2.01078]
[1754590999321,42.998,3815.6,3815.5,1.55608]
[1754590999721,0.5965,3815.4,3815.3,0.52411]
[1754590999924,2.72212,3815.3,3815.2,0.52412]
[1754591000624,2.198,3815.3,3815.2,0.52412]
[1754591001426,42.998,3815.3,3815.2,0.52412]
[1754591002613,42.1165,3815.3,3815.2,2.73152]
[1754591003624,42.568,3815.3,3815.2,2.73152]
[1754591005024,42.998,3815.3,3815.2,2.73152]
[1754591005722,40.8,3815.3,3815.2,2.73152]
[1754591007117,41.6822,3815.3,3815.2,2.73152]
[1754591008321,41.6822,3815.3,3815.2,1.55612]
[1754591008524,42.1122,3815.3,3815.2,1.55612]
[1754591009826,42.1122,3815.3,3815.2,2.01082]
[1754591010420,41.6822,3815.3,3815.2,2.73152]
[1754591010828,41.2307,3815.3,3815.2,2.73152]
[1754591012927,41.6822,3815.3,3815.2,2.73152]
[1754591013124,1.768,3814.8,3814.7,0.3019]
[1754591013321,2.198,3814.8,3814.7,0.5242]
[1754591013626,2.198,3814.8,3814.7,1.2602]
[1754591013826,42.998,3814.8,3814.7,1.2602]
[1754591014223,42.998,3814.8,3814.7,2.0109]
[1754591014427,42.1165,3814.8,3814.7,2.7316]
[1754591015129,42.568,3814.8,3814.7,2.3158]
[1754591015330,42.998,3814.8,3814.7,18.6552]
[1754591015724,42.998,3814.8,3814.7,19.6872]
[1754591015921,42.998,3814.8,3814.7,20.1419]
[1754591016125,42.568,3814.8,3814.7,20.8626]
[1754591016730,40.8,3814.8,3814.7,20.8626]
[1754591020231,1.3165,3815.0,3814.9,1.12207]
[1754591020434,2.10865722,3815.8,3815.7,0.52406]
[1754591020638,1.3373,3815.8,3815.7,0.4341]
[1754591020939,1.40986,3815.7,3815.6,0.52407]
[1754591021237,3.74274891,3815.7,3815.6,0.95817]
[1754591021437,3.21868891,3815.7,3815.6,1.26007]
[1754591021738,2.96935722,3815.7,3815.6,1.26007]
[1754591021942,2.198,3815.7,3815.6,1.26007]
[1754591022135,42.998,3815.7,3815.6,1.26007]
[1754591022438,43.76935722,3815.7,3815.6,1.26007]
[1754591023242,43.76935722,3815.7,3815.6,1.55607]
[1754591023648,43.76935722,3815.7,3815.6,1.99937]
[1754591024543,44.01891012,3815.7,3815.6,0.95817]
[1754591025345,44.01891012,3815.7,3815.6,0.4341]
[1754591025547,44.01891012,3815.7,3815.3,0.8591]
[1754591025548,1.7501,3814.8,3814.7,2.2341]
[1754591025850,1.7501,3814.8,3814.7,0.5242]
[1754591026051,2.2054,3814.8,3814.7,0.5242]
[1754591026548,2.2054,3814.8,3814.3,2.17503]
[1754591026549,2.7296,3814.7,3814.5,18.64922]
[1754591026752,2.2054,3814.6,3814.5,18.64922]
[1754591026947,2.2054,3814.6,3814.5,19.25732]
[1754591027148,2.2054,3814.6,3814.5,19.72542]
[1754591027343,43.0054,3814.6,3814.5,19.72542]
[1754591028052,43.0054,3814.6,3814.5,20.16872]
[1754591028852,43.0054,3814.6,3814.5,19.72542]
[1754591029253,43.0054,3814.6,3814.5,0.52422]
[1754591029553,2.72965,3814.4,3814.3,0.52425]
[1754591029755,2.2054,3814.4,3814.3,0.52425]
[1754591029955,2.2054,3814.4,3814.3,2.33725]
[1754591030255,2.2054,3814.4,3814.3,2.75835]
[1754591032158,0.2858,3814.4,3814.3,2.75835]
[1754591032359,40.8,3814.6,3814.5,2.75833]
[1754591032758,41.6862,3814.6,3814.5,1.813]
[1754591032955,1.7501,3814.4,3814.3,0.52425]
[1754591033156,2.2054,3814.4,3814.3,0.52425]
[1754591034357,2.2054,3814.4,3814.3,0.99235]
[1754591034860,1.7501,3814.4,3814.3,2.75835]
[1754591035863,2.2054,3814.4,3814.3,0.7794]
[1754591036660,2.2054,3814.4,3814.3,0.4681]
[1754591036856,2.2054,3814.4,3814.3,1.813]
[1754591037061,2.2054,3814.4,3814.3,2.2341]
[1754591037364,1.7501,3814.4,3814.3,2.2341]
[1754591037563,2.2054,3814.4,3814.3,2.2341]
[1754591038162,2.2054,3814.4,3814.3,1.813]
[1754591038664,2.2054,3814.4,3814.3,0.7794]
[1754591040362,2.2054,3814.4,3814.3,2.2341]
[1754591040863,2.2054,3814.4,3814.3,1.0729]
[1754591041559,2.2054,3814.4,3814.3,1.813]
[1754591041756,2.2054,3814.4,3814.3,19.934]
[1754591041959,43.0054,3814.4,3814.3,19.934]
[1754591042162,43.0054,3814.4,3814.3,20.3551]
[1754591042660,43.0054,3814.4,3814.3,19.934]
[1754591042959,2.27441,3813.9,3813.8,2.75841]
[1754591043166,0.2858,3813.9,3813.8,20.87941]
[1754591043763,1.7501,3813.9,3813.8,20.87941]
[1754591043958,2.2054,3813.9,3813.8,18.9004]
[1754591044165,2.2054,3813.9,3813.8,0.4681]
[1754591044465,2.2054,3813.9,3813.8,0.7794]
[1754591044662,2.2054,3813.9,3813.8,1.0762]
[1754591044862,2.2054,3813.9,3813.8,1.813]
[1754591045061,2.2054,3813.9,3813.8,2.2341]
[1754591045262,0.81839,3814.1,3814.0,0.9114]
[1754591045464,1.82459,3814.1,3814.0,2.2341]
[1754591045665,2.27439,3814.1,3814.0,2.2341]
[1754591046069,2.72969,3814.1,3814.0,2.2341]
[1754591046270,2.72969,3814.1,3814.0,0.4681]
[1754591047173,2.72969,3814.1,3814.0,2.2341]
[1754591047367,2.27439,3814.1,3814.0,2.2341]
[1754591047966,2.72969,3814.1,3814.0,0.4681]
[1754591048567,2.72969,3814.1,3814.0,2.2341]
[1754591049273,2.27439,3814.1,3814.0,2.2341]
[1754591050069,1.38819,3814.1,3814.0,2.2341]
[1754591050269,0.8639,3814.1,3814.0,2.2341]
[1754591050470,1.3003,3814.1,3814.0,2.2341]
[1754591050770,1.7501,3814.1,3814.0,2.2341]
[1754591052071,0.76998449,3814.3,3814.2,0.9016]
[1754591052275,1.29423644,3814.3,3814.2,2.2341]
[1754591052477,1.58003644,3814.3,3814.2,2.2341]
[1754591052662,2.59453644,3814.3,3814.2,2.2341]
[1754591052974,3.47583644,3814.3,3814.2,2.2341]
[1754591054272,3.04433644,3814.3,3814.2,2.2341]
[1754591055072,3.47583644,3814.3,3814.2,2.2341]
[1754591055373,3.04433644,3814.3,3814.2,2.2341]
[1754591055775,2.59453644,3814.3,3814.2,2.2341]
[1754591056071,1.58003644,3814.3,3814.2,2.2341]
[1754591056471,1.05577644,3814.3,3814.2,2.2341]
[1754591056874,2.51397644,3814.3,3814.2,2.2341]
[1754591057172,2.51397644,3814.3,3814.2,2.2234]
[1754591058075,2.06347644,3814.3,3814.2,2.2234]
[1754591058470,2.31277386,3814.3,3814.2,2.2234]
[1754591058668,2.76327386,3814.3,3814.2,2.2234]
[1754591059768,2.76483814,3814.3,3814.2,2.2234]
[1754591059968,2.02993814,3814.3,3814.2,2.2234]
[1754591060469,1.05734072,3814.3,3814.2,2.2234]
[1754591060674,0.77154072,3814.3,3814.2,2.2234]
[1754591061977,2.94054072,3814.3,3814.2,1.3645]
[1754591062168,2.169,3814.3,3814.2,1.3645]
[1754591063179,1.7375,3814.1,3814.0,2.72599]
[1754591063672,42.087,3814.1,3814.0,2.72599]
[1754591064277,42.5375,3814.1,3814.0,2.72599]
[1754591066176,43.30939373,3814.1,3814.0,2.72599]
[1754591066377,42.5375,3814.1,3814.0,2.72599]
[1754591067271,40.8,3814.1,3814.0,2.72599]
[1754591069680,1.7375,3814.0,3813.9,0.5243]
[1754591069982,0.2793,3814.0,3813.9,2.726]
[1754591070383,40.8,3814.1,3814.0,2.2017]
[1754591072087,41.57272556,3814.1,3814.0,2.2017]
[1754591072478,42.46382556,3814.1,3814.0,2.2017]
[1754591072782,42.01332556,3814.1,3814.0,2.2017]
[1754591072978,41.57272556,3814.1,3814.0,2.2017]
[1754591073980,40.8,3814.1,3814.0,2.2017]
[1754591074182,41.57292669,3814.1,3814.0,2.2017]
[1754591074789,40.8,3814.1,3814.0,2.2017]
[1754591076282,41.2406,3814.1,3814.0,2.2017]
[1754591076887,40.8,3814.1,3814.0,2.2017]
[1754591078883,41.6911,3814.1,3814.0,1.7486]
[1754591079089,42.1226,3814.1,3814.0,2.2017]
[1754591079590,41.6911,3814.1,3814.0,2.2017]
[1754591080285,42.1226,3814.1,3814.0,1.7486]
[1754591080485,1.7185,3814.0,3813.9,0.9525]
[1754591080681,2.169,3814.0,3813.9,0.9525]
[1754591080884,2.169,3814.0,3813.9,2.2729]
[1754591081084,2.169,3814.0,3813.9,2.726]
[1754591082190,1.7375,3814.0,3813.9,2.726]
[1754591082587,1.287,3814.5,3814.4,1.10024]
[1754591082783,2.05990061,3814.5,3814.4,2.72594]
[1754591083591,0.77290061,3814.7,3814.6,2.72161]
[1754591084090,41.57290061,3814.7,3814.6,2.72161]
[1754591084391,42.43500061,3814.7,3814.6,2.72161]
[1754591085486,42.84910061,3814.7,3814.6,2.72161]
[1754591085694,42.43500061,3814.7,3814.6,2.72161]
[1754591086081,42.01620061,3814.7,3814.6,2.72161]
[1754591086487,42.43500061,3814.7,3814.6,2.72161]
[1754591089296,0.77290061,3814.7,3814.6,2.72161]
[1754591089492,0.4433,3815.1,3814.9,1.40347]
[1754591089695,1.76610061,3815.1,3815.0,2.1974]
[1754591089991,1.2789,3815.1,3815.0,2.1974]
[1754591090297,42.4977,3815.1,3815.0,2.1974]
[1754591090600,1.3927,3814.7,3814.6,0.81231]
[1754591090793,1.6685,3814.7,3814.6,0.52421]
[1754591090988,2.1118,3814.7,3814.6,0.52421]
[1754591091187,2.1118,3814.7,3814.6,0.96201]
[1754591091388,2.1118,3814.7,3814.6,2.72161]
[1754591092198,2.1118,3814.7,3814.6,2.29601]
[1754591092386,2.1118,3814.7,3814.6,0.52421]
[1754591092591,2.1118,3814.4,3814.3,0.52425]
[1754591092793,2.1118,3814.4,3814.0,0.4378]
[1754591092987,1.2497,3814.0,3813.9,0.5243]
[1754591093191,1.35991,3813.9,3813.8,0.52431]
[1754591093398,2.63611,3813.9,3813.8,0.52431]
[1754591093592,2.1118,3813.9,3813.8,0.52431]
[1754591094100,40.8,3814.0,3813.8,1.40361]
[1754591094296,40.8,3814.0,3813.9,2.1974]
[1754591095898,2.1118,3814.9,3814.8,2.1974]
[1754591096194,1.2789,3814.3,3814.2,0.52427]
[1754591096397,0.8356,3813.8,3813.7,2.1974]
[1754591096699,41.2433,3813.8,3813.7,2.1974]
[1754591097396,41.2433,3813.8,3813.7,2.72174]
[1754591100294,41.8264,3813.8,3813.7,2.72174]
[1754591103308,41.8264,3813.8,3813.7,2.29614]
[1754591103711,41.8264,3813.8,3813.7,0.52434]
[1754591104004,41.8264,3813.8,3813.4,18.091]
[1754591104005,41.32433,3813.8,3813.6,0.52434]
[1754591104210,1.8466,3813.7,3813.6,0.52434]
[1754591104710,1.8466,3813.7,3813.6,0.97904]
[1754591104906,1.8466,3813.7,3813.6,2.00374]
[1754591105498,1.8466,3813.7,3813.6,2.72174]